[Event "DVM U12w 2024"]
[Site "Bad Homburg"]
[Date "2024.12.27"]
[Round "1"]
[White "Briese, Sophie"]
[Black "Kuebart, Ela Marie"]
[Result "1/2-1/2"]
[ECO "C01"]
[WhiteElo "1465"]
[BlackElo "1561"]
[Annotator "NA RC"]
[PlyCount "59"]
[EventDate "2024.12.23"]
[EventType "team-tourn"]
[EventRounds "7"]
[EventCountry "GER"]
[SourceTitle "playchess.com"]
[Source "ChessBase"]
[SourceQuality "1"]
[TimeControl "40/5400+30:1800+30"]

1. e4 {[%emt 0:00:02]} e6 {[%emt 0:00:05]} 2. d4 {[%emt 0:00:09]} d5 {[%emt 0:00:05]} 3. exd5 {[%emt 0:00:08]} exd5 {[%emt 0:00:14]} 4. Bd3 {[%emt 0:00:20]} Bd6 {[%emt 0:00:29]} 5. c3 {[%emt 0:00:44]} Nf6 {[%emt 0:02:17]} 6. h3 {[%emt 0:00:30]} O-O {[%emt 0:00:43]} 7. Qf3 {[%emt 0:01:36]} Be6 {[%emt 0:01:54]} 8. Ne2 {[%emt 0:01:14]} Nbd7 {[%emt 0:01:34]} 9. O-O {[%emt 0:01:06]} c6 {[%emt 0:00:40]} 10. Bf4 {[%emt 0:01:12]} Qc7 {[%emt 0:04:53]} 11. Nd2 {[%emt 0:03:58]} Rfe8 {[%emt 0:02:40]} 12. Rfe1 {[%emt 0:02:30]} h6 {[%emt 0:05:10]} 13. Qg3 {[%emt 0:08:10]} Bxf4 {[%emt 0:00:56]} 14. Qxf4 {[%emt 0:00:39]} Qxf4 {[%emt 0:00:21]} 15. Nxf4 {[%emt 0:00:08]} Nb6 {[%emt 0:02:10]} 16. b3 {[%emt 0:01:51]} Bd7 {[%emt 0:01:38]} 17. Nf3 {[%emt 0:02:35]} Rxe1+ {[%emt 0:02:15]} 18. Rxe1 {[%emt 0:00:11]} Re8 {[%emt 0:00:06]} 19. Rxe8+ {[%emt 0:02:20]} Bxe8 {[%emt 0:00:48]} 20. c4 {[%emt 0:04:18]} Bd7 {[%emt 0:06:23]} 21. c5 {[%emt 0:01:28]} Nc8 {[%emt 0:00:21]} 22. b4 {[%emt 0:00:48]} b6 {[%emt 0:03:49]} 23. Ne5 {[%emt 0:01:18]} bxc5 {[%emt 0:01:37]} 24. bxc5 {[%emt 0:00:21]} Ne7 {[%emt 0:02:41]} 25. g4 {[%emt 0:04:29]} g5 {[%emt 0:01:20]} 26. Ne2 {[%emt 0:01:13]} Bc8 {[%emt 0:01:32]} 27. f4 {[%emt 0:06:49]} Nd7 {[%emt 0:03:21]} 28. Nxd7 {[%emt 0:03:47]} Bxd7 {[%emt 0:00:24]} 29. fxg5 {[%emt 0:00:41]} hxg5 {[%emt 0:00:12]} 30. Kg2 {[%emt 0:05:14]} 1/2-1/2

[Event "DVM U12w 2024"]
[Site "Bad Homburg"]
[Date "2024.12.27"]
[Round "1"]
[White "Didas, Emma"]
[Black "Elsayed Esam, Sally"]
[Result "1-0"]
[ECO "B13"]
[WhiteElo "1456"]
[BlackElo "1563"]
[Annotator "NA RC"]
[PlyCount "99"]
[EventDate "2024.12.23"]
[EventType "team-tourn"]
[EventRounds "7"]
[EventCountry "GER"]
[SourceTitle "playchess.com"]
[Source "ChessBase"]
[SourceQuality "1"]
[TimeControl "40/5400+30:1800+30"]

1. e4 {[%emt 0:00:02]} c6 {[%emt 0:00:12]} 2. d4 {[%emt 0:00:06]} d5 {[%emt 0:00:21]} 3. exd5 {[%emt 0:00:05]} cxd5 {[%emt 0:00:06]} 4. Bd3 {[%emt 0:00:09]} Nf6 {[%emt 0:00:50]} 5. Bf4 {[%emt 0:00:37]} Bg4 {[%emt 0:01:06]} 6. f3 {[%emt 0:00:11]} Bh5 {[%emt 0:00:19]} 7. Ne2 {[%emt 0:00:16]} e6 {[%emt 0:01:09]} 8. O-O {[%emt 0:00:19]} Bd6 {[%emt 0:00:41]} 9. Bxd6 {[%emt 0:00:15]} Qxd6 {[%emt 0:00:13]} 10. Qd2 {[%emt 0:01:05]} Bg6 {[%emt 0:01:28]} 11. Nf4 {[%emt 0:01:13]} O-O {[%emt 0:02:14]} 12. Nxg6 {[%emt 0:01:55]} hxg6 {[%emt 0:00:24]} 13. Qg5 {[%emt 0:05:28]} Re8 {[%emt 0:02:02]} 14. c3 {[%emt 0:05:05]} Nc6 {[%emt 0:02:21]} 15. Re1 {[%emt 0:01:45]} e5 {[%emt 0:01:37]} 16. dxe5 {[%emt 0:02:25]} Nxe5 {[%emt 0:02:55]} 17. Rd1 {[%emt 0:02:49]} Qc5+ {[%emt 0:00:48]} 18. Kf1 {[%emt 0:00:26]} Nxd3 {[%emt 0:04:08]} 19. Rxd3 {[%emt 0:00:36]} Qe7 {[%emt 0:00:22]} 20. Qd2 {[%emt 0:01:28]} Qe6 {[%emt 0:01:49]} 21. Na3 {[%emt 0:02:04]} Re7 {[%emt 0:01:15]} 22. Re1 {[%emt 0:01:59]} Qxe1+ {[%emt 0:01:30]} 23. Qxe1 {[%emt 0:00:12]} Rxe1+ {[%emt 0:00:07]} 24. Kxe1 {[%emt 0:00:05]} Re8+ {[%emt 0:00:12]} 25. Kd2 {[%emt 0:00:34]} Nh5 {[%emt 0:05:24]} 26. Re3 {[%emt 0:01:13]} Re6 {[%emt 0:01:38]} 27. Nb5 {[%emt 0:02:21]} Nf4 {[%emt 0:05:02]} 28. g3 {[%emt 0:01:44]} a6 {[%emt 0:05:47]} 29. Nd4 {[%emt 0:01:37]} Rxe3 {[%emt 0:01:33]} 30. Kxe3 {[%emt 0:00:16]} Ne6 {[%emt 0:00:58]} 31. Nxe6 {[%emt 0:01:16]} fxe6 {[%emt 0:00:06]} 32. Kf4 {[%emt 0:00:54]} Kf7 {[%emt 0:01:04]} 33. Ke5 {[%emt 0:00:44]} Ke7 {[%emt 0:00:32]} 34. b4 {[%emt 0:00:33]} b6 {[%emt 0:03:04]} 35. a4 {[%emt 0:00:29]} b5 {[%emt 0:08:33]} 36. a5 {[%emt 0:00:57]} Kd7 {[%emt 0:01:38]} 37. h4 {[%emt 0:00:49]} Ke7 {[%emt 0:01:29]} 38. g4 {[%emt 0:00:09]} Kd7 {[%emt 0:01:36]} 39. f4 {[%emt 0:00:07]} Ke7 {[%emt 0:00:46]} 40. f5 {[%emt 0:02:42]} exf5 {[%emt 0:09:10]} 41. gxf5 {[%emt 0:30:12]} Kf7 {[%emt 0:31:51]} 42. fxg6+ {[%emt 0:05:28]} Kxg6 {[%emt 0:00:24]} 43. Kf4 {[%emt 0:01:44]} Kh5 {[%emt 0:02:10]} 44. Kg3 {[%emt 0:00:52]} g6 {[%emt 0:00:53]} 45. Kh3 {[%emt 0:00:28]} g5 {[%emt 0:00:12]} 46. hxg5 {[%emt 0:00:17]} Kxg5 {[%emt 0:00:10]} 47. Kg3 {[%emt 0:00:04]} Kf5 {[%emt 0:00:49]} 48. Kf3 {[%emt 0:00:12]} Ke6 {[%emt 0:02:29]} 49. Ke3 {[%emt 0:00:33]} Ke5 {[%emt 0:00:51]} 50. Kd3 {[%emt 0:00:17]} 1-0

[Event "DVM U12w 2024"]
[Site "Bad Homburg"]
[Date "2024.12.27"]
[Round "1"]
[White "Doescher, Nayla"]
[Black "Khachaturyan, Viktoria"]
[Result "1-0"]
[ECO "C49"]
[WhiteElo "1437"]
[BlackElo "966"]
[Annotator "NA RC"]
[PlyCount "63"]
[EventDate "2024.12.23"]
[EventType "team-tourn"]
[EventRounds "7"]
[EventCountry "GER"]
[SourceTitle "playchess.com"]
[Source "ChessBase"]
[SourceQuality "1"]
[TimeControl "40/5400+30:1800+30"]

1. e4 {[%emt 0:00:02]} e5 {[%emt 0:00:02]} 2. Nf3 {[%emt 0:00:08]} Nc6 {[%emt 0:00:05]} 3. Nc3 {[%emt 0:00:12]} Nf6 {[%emt 0:00:09]} 4. Bb5 {[%emt 0:00:17]} Bb4 {[%emt 0:00:08]} 5. d3 {[%emt 0:03:33]} d6 {[%emt 0:00:41]} 6. h3 {[%emt 0:01:42]} h6 {[%emt 0:00:30]} 7. O-O {[%emt 0:02:09]} O-O {[%emt 0:00:21]} 8. Bd2 {[%emt 0:03:01]} Bd7 {[%emt 0:01:17]} 9. a3 {[%emt 0:03:54]} Bc5 {[%emt 0:01:58]} 10. Re1 {[%emt 0:12:00]} Be6 {[%emt 0:00:59]} 11. Bxc6 {[%emt 0:23:32]} bxc6 {[%emt 0:00:24]} 12. Qc1 {[%emt 0:02:41]} Nh5 {[%emt 0:01:12]} 13. Be3 {[%emt 0:06:46]} Qf6 {[%emt 0:01:12]} 14. Bxc5 {[%emt 0:02:46]} dxc5 {[%emt 0:00:13]} 15. Qe3 {[%emt 0:02:39]} c4 {[%emt 0:00:58]} 16. dxc4 {[%emt 0:01:57]} Bxc4 {[%emt 0:00:20]} 17. Qc5 {[%emt 0:01:42]} Be6 {[%emt 0:02:03]} 18. Qxe5 {[%emt 0:02:52]} Qg6 {[%emt 0:01:05]} 19. Kh1 {[%emt 0:05:05]} Rfe8 {[%emt 0:02:38]} 20. Qxc7 {[%emt 0:02:05]} Rac8 {[%emt 0:03:00]} 21. Qxa7 {[%emt 0:03:59]} Nf4 {[%emt 0:00:54]} 22. Rg1 {[%emt 0:01:47]} Qh5 {[%emt 0:01:40]} 23. Qe3 {[%emt 0:03:39]} Nxh3 {[%emt 0:04:02]} 24. gxh3 {[%emt 0:04:15]} Bxh3 {[%emt 0:02:41]} 25. Nh2 {[%emt 0:01:50]} Re6 {[%emt 0:02:55]} 26. Rg3 {[%emt 0:02:25]} Bg4 {[%emt 0:01:49]} 27. Rxg4 {[%emt 0:00:42]} Rg6 {[%emt 0:01:18]} 28. Rag1 {[%emt 0:00:43]} Re8 {[%emt 0:03:09]} 29. Rxg6 {[%emt 0:01:15]} fxg6 {[%emt 0:00:07]} 30. Qg3 {[%emt 0:00:47]} g5 {[%emt 0:01:56]} 31. f4 {[%emt 0:01:00]} Re6 {[%emt 0:01:07]} 32. fxg5 {[%emt 0:00:52]} 1-0

[Event "DVM U12w 2024"]
[Site "Bad Homburg"]
[Date "2024.12.27"]
[Round "1"]
[White "Raghavan, Madhushri"]
[Black "Bacakova, Johanna"]
[Result "1-0"]
[ECO "D55"]
[WhiteElo "1410"]
[BlackElo "1045"]
[Annotator "NA RC"]
[PlyCount "84"]
[EventDate "2024.12.23"]
[EventType "team-tourn"]
[EventRounds "7"]
[EventCountry "GER"]
[SourceTitle "playchess.com"]
[Source "ChessBase"]
[SourceQuality "1"]
[TimeControl "40/5400+30:1800+30"]

1. d4 {[%emt 0:00:25]} d5 {[%emt 0:00:08]} 2. c4 {[%emt 0:00:27]} e6 {[%emt 0:00:14]} 3. Nc3 {[%emt 0:00:44]} Nf6 {[%emt 0:00:20]} 4. Bg5 {[%emt 0:00:34]} Be7 {[%emt 0:00:26]} 5. Nf3 {[%emt 0:01:49]} O-O {[%emt 0:00:30]} 6. e3 {[%emt 0:00:47]} c5 {[%emt 0:01:25]} 7. dxc5 {[%emt 0:01:16]} Bxc5 {[%emt 0:01:20]} 8. Bxf6 {[%emt 0:01:03]} Qxf6 {[%emt 0:01:38]} 9. cxd5 {[%emt 0:00:59]} exd5 {[%emt 0:01:16]} 10. Qxd5 {[%emt 0:01:35]} Bb4 {[%emt 0:02:42]} 11. Qd4 {[%emt 0:05:09]} Qxd4 {[%emt 0:03:16]} 12. Nxd4 {[%emt 0:00:45]} Rd8 {[%emt 0:01:13]} 13. a3 {[%emt 0:02:22]} Ba5 {[%emt 0:02:07]} 14. Nb3 {[%emt 0:03:04]} Bxc3+ {[%emt 0:01:27]} 15. bxc3 {[%emt 0:00:43]} Nc6 {[%emt 0:01:28]} 16. Nd4 {[%emt 0:03:53]} Ne7 {[%emt 0:04:52]} 17. g3 {[%emt 0:03:39]} Bf5 {[%emt 0:05:43]} 18. Bg2 {[%emt 0:01:49]} Rd7 {[%emt 0:04:35]} 19. a4 {[%emt 0:04:34]} Rc8 {[%emt 0:01:44]} 20. Ra3 {[%emt 0:02:00]} Bg6 {[%emt 0:02:31]} 21. Bh3 {[%emt 0:01:52]} f5 {[%emt 0:02:43]} 22. e4 {[%emt 0:01:18]} Rc5 {[%emt 0:05:02]} 23. O-O {[%emt 0:07:40]} Rd6 {[%emt 0:04:11]} 24. exf5 {[%emt 0:03:34]} Nxf5 {[%emt 0:01:10]} 25. Nxf5 {[%emt 0:01:02]} Bxf5 {[%emt 0:00:34]} 26. Bxf5 {[%emt 0:00:37]} Rxf5 {[%emt 0:00:43]} 27. Rb3 {[%emt 0:01:45]} b6 {[%emt 0:01:58]} 28. Rb5 {[%emt 0:03:38]} Rdd5 {[%emt 0:01:34]} 29. c4 {[%emt 0:01:12]} Rc5 {[%emt 0:02:07]} 30. Rd1 {[%emt 0:01:40]} Rf7 {[%emt 0:02:44]} 31. Rd8+ {[%emt 0:01:25]} Rf8 {[%emt 0:00:47]} 32. Rxf8+ {[%emt 0:00:19]} Kxf8 {[%emt 0:00:19]} 33. Rxc5 {[%emt 0:00:16]} bxc5 {[%emt 0:00:31]} 34. Kf1 {[%emt 0:00:17]} Ke7 {[%emt 0:00:44]} 35. Ke1 {[%emt 0:00:52]} Kd6 {[%emt 0:01:07]} 36. Kd2 {[%emt 0:00:19]} Kc6 {[%emt 0:01:54]} 37. Ke3 {[%emt 0:00:51]} Kb6 {[%emt 0:00:45]} 38. Ke4 {[%emt 0:00:23]} Ka5 {[%emt 0:00:58]} 39. Kd5 {[%emt 0:00:59]} Kb4 {[%emt 0:01:17]} 40. a5 {[%emt 0:00:39]} a6 {[%emt 0:00:57]} 41. f4 {[%emt 0:30:54]} h6 {[%emt 0:31:30]} 42. g4 {[%emt 0:00:23]} g6 {[%emt 0:01:14]} 1-0

[Event "DVM U12w 2024"]
[Site "Bad Homburg"]
[Date "2024.12.27"]
[Round "1"]
[White "Naz Öksüz, Meryem"]
[Black "Doberchak, Emily Alice"]
[Result "0-1"]
[ECO "C50"]
[WhiteElo "1296"]
[BlackElo "1106"]
[Annotator "NA"]
[PlyCount "70"]
[EventDate "2024.12.23"]
[EventType "team-tourn"]
[EventRounds "7"]
[EventCountry "GER"]
[SourceTitle "playchess.com"]
[Source "ChessBase"]
[SourceQuality "1"]
[TimeControl "40/5400+30:1800+30"]

1. e4 {[%emt 0:00:15]} e5 {[%emt 0:00:06]} 2. Nf3 {[%emt 0:00:13]} Nc6 {[%emt 0:00:08]} 3. Bc4 {[%emt 0:00:14]} Bc5 {[%emt 0:00:33]} 4. O-O {[%emt 0:00:23]} d6 {[%emt 0:00:26]} 5. c3 {[%emt 0:00:13]} Bg4 {[%emt 0:00:56]} 6. d3 {[%emt 0:00:37]} h6 {[%emt 0:01:12]} 7. h3 {[%emt 0:00:13]} Bh5 {[%emt 0:00:43]} 8. Be3 {[%emt 0:00:42]} Bb6 {[%emt 0:01:03]} 9. Nbd2 {[%emt 0:01:30]} Nf6 {[%emt 0:01:07]} 10. b4 {[%emt 0:00:56]} a6 {[%emt 0:02:26]} 11. Qb3 {[%emt 0:00:23]} O-O {[%emt 0:01:14]} 12. d4 {[%emt 0:01:37]} Bxf3 {[%emt 0:04:37]} 13. Nxf3 {[%emt 0:00:22]} Nxe4 {[%emt 0:00:57]} 14. dxe5 {[%emt 0:00:29]} dxe5 {[%emt 0:01:59]} 15. Rad1 {[%emt 0:00:36]} Qe7 {[%emt 0:01:48]} 16. Bd5 {[%emt 0:00:54]} Bxe3 {[%emt 0:02:44]} 17. fxe3 {[%emt 0:00:51]} Ng3 {[%emt 0:01:48]} 18. Rf2 {[%emt 0:00:37]} e4 {[%emt 0:02:22]} 19. Nd2 {[%emt 0:02:59]} Rad8 {[%emt 0:01:10]} 20. Kh2 {[%emt 0:00:27]} Nh5 {[%emt 0:02:33]} 21. Nxe4 {[%emt 0:01:06]} Rd7 {[%emt 0:07:33]} 22. Bxc6 {[%emt 0:00:00]} bxc6 {[%emt 0:03:28]} 23. Rxd7 {[%emt 0:00:00]} Qxd7 {[%emt 0:01:03]} 24. g4 {[%emt 0:00:27]} Qe7 {[%emt 0:02:15]} 25. Qc4 {[%emt 0:00:44]} Qe5+ {[%emt 0:03:48]} 26. Kg1 {[%emt 0:00:27]} Nf6 {[%emt 0:01:27]} 27. Nxf6+ {[%emt 0:01:08]} gxf6 {[%emt 0:01:05]} 28. Rf3 {[%emt 0:01:32]} Rd8 {[%emt 0:00:58]} 29. Qe2 {[%emt 0:01:49]} Qxc3 {[%emt 0:00:56]} 30. Qf1 {[%emt 0:03:24]} Rd3 {[%emt 0:02:41]} 31. Rxf6 {[%emt 0:00:53]} Rxe3 {[%emt 0:00:31]} 32. Kh2 {[%emt 0:03:59]} Qe5+ {[%emt 0:03:16]} 33. Rf4 {[%emt 0:02:18]} Re4 {[%emt 0:02:00]} 34. Kg3 {[%emt 0:01:54]} Kg7 {[%emt 0:02:24]} 35. h4 {[%emt 0:04:11]} Rxb4 {[%emt 0:02:41]} 0-1

[Event "DVM U12w 2024"]
[Site "Bad Homburg"]
[Date "2024.12.27"]
[Round "1"]
[White "Szymil, Alicja"]
[Black "Xu, Dorothea Sicheng"]
[Result "1-0"]
[ECO "C50"]
[WhiteElo "1289"]
[BlackElo "1585"]
[Annotator "NA RC"]
[PlyCount "101"]
[EventDate "2024.12.23"]
[EventType "team-tourn"]
[EventRounds "7"]
[EventCountry "GER"]
[SourceTitle "playchess.com"]
[Source "ChessBase"]
[SourceQuality "1"]
[TimeControl "40/5400+30:1800+30"]

1. e4 {[%emt 0:00:03]} e5 {[%emt 0:00:05]} 2. Nf3 {[%emt 0:00:05]} Nc6 {[%emt 0:00:12]} 3. Bc4 {[%emt 0:00:14]} Nf6 {[%emt 0:00:10]} 4. d3 {[%emt 0:00:13]} Bc5 {[%emt 0:00:56]} 5. O-O {[%emt 0:00:17]} O-O {[%emt 0:00:51]} 6. Bg5 {[%emt 0:00:18]} h6 {[%emt 0:00:19]} 7. Bh4 {[%emt 0:00:10]} Re8 {[%emt 0:04:06]} 8. Re1 {[%emt 0:00:31]} d6 {[%emt 0:00:48]} 9. h3 {[%emt 0:00:13]} Be6 {[%emt 0:01:16]} 10. Bb3 {[%emt 0:01:23]} Nd4 {[%emt 0:08:43]} 11. Nc3 {[%emt 0:00:30]} c6 {[%emt 0:03:17]} 12. Na4 {[%emt 0:01:39]} Nxb3 {[%emt 0:02:34]} 13. axb3 {[%emt 0:00:19]} b6 {[%emt 0:07:40]} 14. Nxc5 {[%emt 0:00:25]} bxc5 {[%emt 0:00:27]} 15. c4 {[%emt 0:01:25]} Bc8 {[%emt 0:04:32]} 16. Qc2 {[%emt 0:03:40]} Re6 {[%emt 0:03:10]} 17. Qc3 {[%emt 0:01:15]} Qc7 {[%emt 0:02:46]} 18. b4 {[%emt 0:00:57]} cxb4 {[%emt 0:02:46]} 19. Qxb4 {[%emt 0:00:20]} Rb8 {[%emt 0:02:40]} 20. Qc3 {[%emt 0:01:49]} Qb6 {[%emt 0:06:50]} 21. Rab1 {[%emt 0:00:33]} Ne8 {[%emt 0:06:46]} 22. d4 {[%emt 0:00:40]} exd4 {[%emt 0:01:39]} 23. Nxd4 {[%emt 0:00:19]} Rg6 {[%emt 0:03:15]} 24. Kh1 {[%emt 0:01:38]} Nc7 {[%emt 0:02:12]} 25. f4 {[%emt 0:00:22]} d5 {[%emt 0:03:46]} 26. c5 {[%emt 0:00:32]} Qb4 {[%emt 0:04:47]} 27. f5 {[%emt 0:00:46]} Qxc3 {[%emt 0:01:03]} 28. bxc3 {[%emt 0:00:14]} Rxb1 {[%emt 0:01:28]} 29. Rxb1 {[%emt 0:00:09]} Bxf5 {[%emt 0:02:10]} 30. exf5 {[%emt 0:00:11]} Rg5 {[%emt 0:00:26]} 31. Bxg5 {[%emt 0:00:11]} hxg5 {[%emt 0:00:09]} 32. Rb7 {[%emt 0:00:13]} Na6 {[%emt 0:00:56]} 33. Rxa7 {[%emt 0:00:22]} Nxc5 {[%emt 0:00:40]} 34. Rc7 {[%emt 0:00:09]} Ne4 {[%emt 0:01:53]} 35. Nxc6 {[%emt 0:00:28]} Nxc3 {[%emt 0:03:04]} 36. Nb4 {[%emt 0:02:48]} d4 {[%emt 0:02:21]} 37. Rc4 {[%emt 0:00:20]} Ne2 {[%emt 0:00:52]} 38. Rc2 {[%emt 0:00:45]} Ng3+ {[%emt 0:01:29]} 39. Kg1 {[%emt 0:00:38]} Nxf5 {[%emt 0:00:33]} 40. Rd2 {[%emt 0:00:43]} Ng3 {[%emt 0:03:09]} 41. Nc2 {[%emt 0:30:14]} f6 {[%emt 0:30:41]} 42. Nxd4 {[%emt 0:00:19]} Kf7 {[%emt 0:00:52]} 43. Rd3 {[%emt 0:00:26]} Ne4 {[%emt 0:00:22]} 44. Re3 {[%emt 0:00:24]} Nd6 {[%emt 0:01:13]} 45. g4 {[%emt 0:00:25]} Nc4 {[%emt 0:02:33]} 46. Rc3 {[%emt 0:00:12]} Ne5 {[%emt 0:01:28]} 47. Rc7+ {[%emt 0:00:37]} Kg8 {[%emt 0:01:38]} 48. Nf5 {[%emt 0:00:29]} g6 {[%emt 0:01:33]} 49. Nh6+ {[%emt 0:00:47]} Kf8 {[%emt 0:01:30]} 50. Kf2 {[%emt 0:01:05]} Ke8 {[%emt 0:01:08]} 51. Ke3 {[%emt 0:00:41]} 1-0

[Event "DVM U12w 2024"]
[Site "Bad Homburg"]
[Date "2024.12.27"]
[Round "1"]
[White "Lao, Theodora Siyuan"]
[Black "Nuzhnaia, Daria"]
[Result "1-0"]
[ECO "B30"]
[WhiteElo "1170"]
[BlackElo "831"]
[Annotator "NA"]
[PlyCount "51"]
[EventDate "2024.12.23"]
[EventType "team-tourn"]
[EventRounds "7"]
[EventCountry "GER"]
[SourceTitle "playchess.com"]
[Source "ChessBase"]
[SourceQuality "1"]
[TimeControl "40/5400+30:1800+30"]

1. e4 {[%emt 0:00:01]} c5 {[%emt 0:00:07]} 2. Nf3 {[%emt 0:00:04]} Nc6 {[%emt 0:00:17]} 3. Bb5 {[%emt 0:00:13]} e6 {[%emt 0:00:47]} 4. Nc3 {[%emt 0:00:59]} d6 {[%emt 0:00:17]} 5. d4 {[%emt 0:00:49]} cxd4 {[%emt 0:06:38]} 6. Nxd4 {[%emt 0:00:07]} Bd7 {[%emt 0:00:21]} 7. Be3 {[%emt 0:01:10]} Nf6 {[%emt 0:00:17]} 8. h3 {[%emt 0:00:29]} Be7 {[%emt 0:00:17]} 9. O-O {[%emt 0:00:18]} O-O {[%emt 0:00:10]} 10. Qe2 {[%emt 0:01:29]} a6 {[%emt 0:00:22]} 11. Bd3 {[%emt 0:01:38]} h6 {[%emt 0:00:51]} 12. a3 {[%emt 0:00:38]} Nxd4 {[%emt 0:00:40]} 13. Bxd4 {[%emt 0:00:09]} e5 {[%emt 0:00:13]} 14. Be3 {[%emt 0:00:24]} Be6 {[%emt 0:00:15]} 15. f4 {[%emt 0:02:19]} exf4 {[%emt 0:02:17]} 16. Bxf4 {[%emt 0:00:14]} Rc8 {[%emt 0:01:25]} 17. Rad1 {[%emt 0:00:44]} d5 {[%emt 0:00:49]} 18. e5 {[%emt 0:01:21]} Nd7 {[%emt 0:00:47]} 19. Qf3 {[%emt 0:01:37]} Bc5+ {[%emt 0:00:42]} 20. Kh1 {[%emt 0:00:28]} d4 {[%emt 0:01:01]} 21. Ne2 {[%emt 0:02:01]} Re8 {[%emt 0:00:55]} 22. Qg3 {[%emt 0:01:04]} Bd5 {[%emt 0:01:26]} 23. Bxh6 {[%emt 0:01:28]} g6 {[%emt 0:00:28]} 24. Bxg6 {[%emt 0:01:15]} Bf8 {[%emt 0:01:40]} 25. Bxf7+ {[%emt 0:00:50]} Kh8 {[%emt 0:00:18]} 26. Qg8# {[%emt 0:00:21]} 1-0

[Event "DVM U12w 2024"]
[Site "Bad Homburg"]
[Date "2024.12.27"]
[Round "1"]
[White "Nehrukumar, Rithika"]
[Black "Subocz, Barbara"]
[Result "1-0"]
[ECO "B35"]
[WhiteElo "1147"]
[BlackElo "1623"]
[Annotator "NA RC"]
[PlyCount "75"]
[EventDate "2024.12.23"]
[EventType "team-tourn"]
[EventRounds "7"]
[EventCountry "GER"]
[SourceTitle "playchess.com"]
[Source "ChessBase"]
[SourceQuality "1"]
[TimeControl "40/5400+30:1800+30"]

1. e4 {[%emt 0:00:02]} c5 {[%emt 0:00:04]} 2. Nf3 {[%emt 0:00:07]} d6 {[%emt 0:00:13]} 3. d4 {[%emt 0:00:19]} cxd4 {[%emt 0:00:26]} 4. Nxd4 {[%emt 0:00:22]} Nf6 {[%emt 0:01:00]} 5. Nc3 {[%emt 0:00:25]} g6 {[%emt 0:00:38]} 6. Bc4 {[%emt 0:03:06]} Bg7 {[%emt 0:01:45]} 7. Be3 {[%emt 0:04:44]} Nc6 {[%emt 0:05:04]} 8. Bb5 {[%emt 0:02:41]} Bd7 {[%emt 0:01:49]} 9. Nxc6 {[%emt 0:01:19]} Bxc6 {[%emt 0:03:09]} 10. Bxc6+ {[%emt 0:00:49]} bxc6 {[%emt 0:00:10]} 11. O-O {[%emt 0:02:01]} O-O {[%emt 0:01:13]} 12. h3 {[%emt 0:03:05]} h6 {[%emt 0:00:48]} 13. Qd2 {[%emt 0:00:35]} Kh7 {[%emt 0:00:43]} 14. Rfe1 {[%emt 0:04:22]} Qc7 {[%emt 0:18:08]} 15. Bf4 {[%emt 0:01:47]} Nd7 {[%emt 0:02:03]} 16. Rad1 {[%emt 0:08:09]} Rab8 {[%emt 0:01:42]} 17. b3 {[%emt 0:00:38]} Nc5 {[%emt 0:05:48]} 18. Qe3 {[%emt 0:06:44]} Qa5 {[%emt 0:02:39]} 19. e5 {[%emt 0:03:52]} dxe5 {[%emt 0:03:44]} 20. Bxe5 {[%emt 0:00:31]} Rbd8 {[%emt 0:01:47]} 21. Bxg7 {[%emt 0:00:21]} Kxg7 {[%emt 0:00:40]} 22. Qe5+ {[%emt 0:04:28]} Kg8 {[%emt 0:02:10]} 23. Na4 {[%emt 0:01:29]} Rxd1 {[%emt 0:01:38]} 24. Rxd1 {[%emt 0:00:29]} Nb7 {[%emt 0:00:33]} 25. Qxa5 {[%emt 0:00:13]} Nxa5 {[%emt 0:00:09]} 26. Rd7 {[%emt 0:00:11]} a6 {[%emt 0:00:39]} 27. Ra7 {[%emt 0:01:10]} e5 {[%emt 0:01:12]} 28. Rxa6 {[%emt 0:00:20]} Nb7 {[%emt 0:00:25]} 29. Rxc6 {[%emt 0:00:21]} Rd8 {[%emt 0:00:21]} 30. Nc5 {[%emt 0:02:19]} Rd1+ {[%emt 0:01:45]} 31. Kh2 {[%emt 0:00:10]} Nxc5 {[%emt 0:00:19]} 32. Rxc5 {[%emt 0:00:07]} Kf8 {[%emt 0:00:13]} 33. a4 {[%emt 0:00:28]} Ra1 {[%emt 0:00:37]} 34. Rxe5 {[%emt 0:00:31]} f6 {[%emt 0:01:08]} 35. Rb5 {[%emt 0:00:24]} Ke7 {[%emt 0:01:03]} 36. a5 {[%emt 0:01:09]} g5 {[%emt 0:01:12]} 37. b4 {[%emt 0:00:51]} Ra4 {[%emt 0:00:08]} 38. c4 {[%emt 0:02:04]} 1-0